Workbook

Sheet Titulní list
B16: ROZBOR HOSPODAŘENÍ FN OLOMOUC
F18: =dat_obdobi -> 1-12/2009
A44: Období od: | B44: 2009-01-01
A45: do: | B45: 2009-12-31
A46: rok: | B46: =YEAR(dat_do) -> 2009
A47: Typ období: | B47: =CONCATENATE(MONTH(dat_od),"-",MONTH(dat_do),"/",YEAR(dat_do)) -> 1-12/2009
A48: Měsíc: | B48: =dat_do -> 2009-12-31
B49: =CONCATENATE("Skut. ", dat_obdobi) -> Skut. 1-12/2009
B50: =CONCATENATE("PLÁN ", dat_rok) -> PLÁN 2009
A51: Předch.obd.od: | B51: =CONCATENATE("1.1.",YEAR(dat_od)-1) -> 1.1.2008
A52: Předch.obd.do: | B52: =CONCATENATE((DAY(dat_do)),".",MONTH(dat_do),".",YEAR(dat_do)-1) -> 31.12.2008
A53: Předch.rok: | B53: =YEAR(dat_dorokpredch) -> 2008
A54: Předch.r. měs. | B54: =dat_do-366 -> 2008-12-30
A55: Predch.typ obd. | B55: =CONCATENATE(MONTH(dat_odrokpredch),"-",MONTH(dat_dorokpredch),"/",YEAR(dat_dorokpredch)) -> 1-12/2008

Sheet Rozbor hospodaření FN Olomouc-1
A1: ROZBOR HOSPODAŘENÍ FN OLOMOUC
A3: =dat_obdobi -> 1-12/2009
D5: Rozpočet | E5: Skutečnost | G5: Rozdíl | H5: Překročení
D6: =YEAR(dat_do) -> 2009 | E6: =dat_obdobi -> 1-12/2009
A7: Náklady bez VPN | D7: 3757414 | E7: 4229786.981 | F7: tis.Kč | G7: =N_bez_VPN-((N_bez_VPN_Rozp/12)*MONTH(dat_do)) -> 472372.9814 | H7: =IF(N_bez_VPN_Rozp <> 0,G7/((N_bez_VPN_Rozp/12)*MONTH(dat_do)),"-") -> 0.1257175763
A8: Náklady celkem vč. VPN | D8: 4040621 | E8: 4529003.645 | F8: tis.Kč | G8: =N_vc_VPN-((N_vc_VPN_Rozp/12)*MONTH(dat_do)) -> 488382.6453
A10: Výnosy bez VPV | D10: 3808028 | E10: 4232255.734 | F10: tis.Kč | G10: =V_bez_VPV-((V_bez_VPV_Rozp/12)*MONTH(dat_do)) -> 424227.7343 | H10: =IF(V_bez_VPV_Rozp <> 0,G10/((V_bez_VPV_Rozp/12)*MONTH(dat_do)),"-") -> 0.1114035229
A11: Výnosy celkem vč. VPV | D11: 4091235 | E11: 4531472.398 | F11: tis.Kč | G11: =V_vc_VPV-((V_vc_VPV_Rozp/12)*MONTH(dat_do)) -> 440237.3982
A13: Hospodářský výsledek = | C13: zisk | E13: =ABS(E10-E7) -> 2468.75294 | F13: tis.Kč
A15: Rozbor nákladů:
A17: Překročení nákladů o:
A19: SZM | E19: 166877 | F19: tis. Kč
A20: Léky | E20: 95617 | F20: tis. Kč
A21: Všeobecný materiál | E21: 11601 | F21: tis. Kč
A22: Krev | E22: 8940 | F22: tis. Kč
A23: Opravy a udržování | E23: 7124 | F23: tis. Kč
A24: Náhradní díly | E24: 6893 | F24: tis. Kč
A25: DDHM | E25: 25253 | F25: tis. Kč
A27: Zásoby: | B27: Limit | C27: =CONCATENATE("Počáteční stav ",DAY(dat_od),".",MONTH(dat_od),".",YEAR(dat_do)) -> Počáteční stav 1.1.2009 | D27: =CONCATENATE("Stav k ",DAY(dat_do),".",MONTH(dat_do),".",YEAR(dat_do)) -> Stav k 31.12.2009 | E27: Snížení / Zvýšení zásob o
A28: Léky | B28: 23300 | C28: 27741 | D28: 34109 | E28: =IF(C28>D28,"snížení","zvýšení") -> zvýšení | F28: =D28-C28 -> 6368
A29: Krev | B29: 13000 | C29: 17087 | D29: 16522 | E29: =IF(C29>D29,"snížení","zvýšení") -> snížení | F29: =D29-C29 -> -565
A30: SZM | B30: 14700 | C30: 2940 | D30: 4824 | E30: zvýšení | F30: 1884
A31: Dentální slitiny | B31: nestanoven | C31: 241 | D31: 242 | E31: =IF(C31>D31,"snížení","zvýšení") -> zvýšení | F31: =D31-C31 -> 1
A32: Potraviny | B32: 1600 | C32: 1353 | D32: 1368 | E32: zvýšení | F32: 15
A33: Prádlo | B33: 2600 | C33: 1565 | D33: 1907 | E33: zvýšení | F33: 342
A34: Všeobecný materiál | B34: 1000 | C34: 1578 | D34: 1835 | E34: zvýšení | F34: 257
A35: Údržbový materiál | B35: nestanoven | C35: 882 | D35: 936 | E35: zvýšení | F35: 54
A36: DDHM | B36: nestanoven | C36: 883 | D36: 582 | E36: snížení | F36: -301
A37: Materiál na cestě | B37: nestanoven | C37: 479 | D37: 787 | E37: zvýšení | F37: 308
A38: Zboží na skladě | B38: nestanoven | C38: 30 | D38: 21 | E38: snížení | F38: -9
A39: Zboží na cestě | B39: nestanoven | C39: 0 | D39: 0 | E39: zvýšení | F39: 0
A40: CELKEM | B40: nestanoven | C40: 54778 | D40: 63132 | E40: zvýšení | F40: 8354
A43: Rozbor výnosů
D44: Rozpočet | E44: Skutečnost | G44: Rozdíl | H44: Překročení
D45: =YEAR(dat_do) -> 2009 | E45: =dat_obdobi -> 1-12/2009
A46: Výnosy celkem | D46: 4091235 | E46: 4531472.398 | F46: tis.Kč | G46: =E46-((D46/12)*MONTH(dat_do)) -> 440237.3982 | H46: =G46/((D46/12)*MONTH(dat_do)) -> 0.1076050137
A47: z toho:
A48: Výkony pro zdravotní pojišťovny | D48: 3125030 | E48: 3447000 | F48: tis.Kč | G48: =E48-((D48/12)*MONTH(dat_do)) -> 321970 | H48: =IF(D48 <> 0,G48/((D48/12)*MONTH(dat_do)),"-") -> 0.1030294109
A49: 691 vybrané činnosti MZ | D49: 3850 | E49: 9205 | F49: tis.Kč | G49: 5355 | H49: 1.390909091
A50: 691 granty | D50: 0 | E50: 14986 | F50: tis.Kč | G50: 14986 | H50: -
A51: 691 dotace na DDM | D51: 0 | E51: 802 | F51: tis.Kč | G51: 802 | H51: -
A52: 691 dotace na provoz z ÚSC | D52: 0 | E52: 0 | F52: tis.Kč | G52: 0 | H52: -
A53: 699 vnitropodnikové výnosy | D53: 283207 | E53: 299217 | F53: tis.Kč | G53: 16010 | H53: 0.05653108857
A54: 604 tržby LS | D54: 337695 | E54: 354535 | F54: tis.Kč | G54: 16840 | H54: 0.04986748397
A55: ostatní výnosy | D55: =D46 -SUM(D48:D54) -> 341453 | E55: =E46 -SUM(E48:E54) -> 405727.3982 | F55: tis.Kč | G55: 64274.39824 | H55: 0.1882379075
A57: Komentář: vlivy do nákladů - vyšší spotřeba léků v centrech, překročení nákladů na defibr-povolené překroč.,ost.ZPr-nové prac.Robot.centrum,
B58: krve,nákup DDHM-lékař.nástr.onkologie, poloh.lůžka, inf.pumpy,nábytek, | E58: inf.pumpy,ND na PET CT, netkaný textil, revize a techn.kontroly přístrojů
B59: nábytek-výdejna léků, nájem přístr.,nákup SW-licence,výběr.říz.PACS,person.rozvoj,poradenství,spotřeba PZT-Granty,vyřazení
B60: dekontaminačního zařízení-analytický modulár,parní desinfektor, změna vykazování CDL z receptů na žádanky.
A61: vlivy do výnosů - vyúčtování zdrav.péče za r. 2008 u ZP Metal ,OZP, VoZP, HZP,ZPMV, ČNZP a RBP ve výši 145 mil.Kč,
B62: zvýšení měs.zálohy METAL Al. na 107 %,finanční bonusy LS.Navýšení paušální úhrady od VZP 4Q(měs. 20 mil.)
B63: Minusová dohadná položka-vyúčtování zdrav.péče VZP - 61,8 mil.Kč a OZP - 3,9 mil. Kč-nenaplnění stanov.limitů.

Sheet Ziskové kliniky FN Olomouc-3 (hidden)
A1: Ziskové kliniky FN Olomouc proti rozpočtu
A2: =dat_obdobi -> 1-12/2009
C30: Klinika | D30: Klinika č. | E30: Zisk
C31: III. Interní klinika | D31: 03 | E31: 203
C32: I. Chirurgická klinika | D32: 04 | E32: 3358
C33: Novorozenecké oddělení | D33: 09 | E33: 6076
C34: Ortopedická klinika | D34: 11 | E34: 3595
C35: Urologická klinika | D35: 12 | E35: 1314
C36: Oddělení alergologie | D36: 15 | E36: 326
C37: Klinika pracovního lékařství | D37: 19 | E37: 460
C38: Onkologická klinika | D38: 21 | E38: 22192
C39: Klinika nukleární medicíny | D39: 22 | E39: 21540
C40: Klinika ústní,čelistní a obl. | D40: 25 | E40: 696
C41: Ústav lékařské genetiky a fet. | D41: 28 | E41: 15309
C42: Hemato-onkologická klinika | D42: 32 | E42: 12928
C43: Odděl.klin.biochemie a imunoge | D43: 33 | E43: 2489
C44: Radiologická klinika | D44: 34 | E44: 5825
C45: Transfůzní oddělení | D45: 35 | E45: 20107
C46: Oddělení klinické logopedie | D46: 36 | E46: 140
C47: Ústav patologie | D47: 37 | E47: 8655
C48: Ústav soudního lékařství a med | D48: 38 | E48: 34
C49: Ústav mikrobiologie | D49: 40 | E49: 1942
C50: Ústav imunologie | D50: 41 | E50: 4615
C51: Ústav farmakologie | D51: 43 | E51: 25
C52: Sociální oddělení | D52: 45 | E52: 746
C53: Oddělení centrální sterilizace | D53: 56 | E53: 1362
C54: Oddělení int.péče chir.oborů | D54: 59 | E54: 1847

Sheet Ziskové kliniky FN Olomouc-0 (hidden)
A1: Ziskové kliniky FN Olomouc
A2: =dat_obdobi -> 1-12/2009
C30: Klinika | D30: Klinika č. | E30: Zisk
C31: Novorozenecké oddělení | D31: 09 | E31: 17105
C32: Onkologická klinika | D32: 21 | E32: 11541
C33: Klinika nukleární medicíny | D33: 22 | E33: 66077
C34: Klinika rehabilit. a tělových. | D34: 26 | E34: 19689
C35: Ústav lékařské genetiky a fet. | D35: 28 | E35: 26415
C36: Hemato-onkologická klinika | D36: 32 | E36: 43424
C37: Odděl.klin.biochemie a imunoge | D37: 33 | E37: 49883
C38: Radiologická klinika | D38: 34 | E38: 28235
C39: Transfůzní oddělení | D39: 35 | E39: 29321
C40: Ústav patologie | D40: 37 | E40: 35209
C41: Ústav mikrobiologie | D41: 40 | E41: 31915
C42: Ústav imunologie | D42: 41 | E42: 22935
C43: Kardiochirurgická klinika | D43: 50 | E43: 14673
C44: Oddělení int.péče chir.oborů | D44: 59 | E44: 3959

Sheet Ztrátové kliniky FN Olomouc-4 (hidden)
A1: Ztrátové kliniky FN Olomouc proti rozpočtu
A2: =dat_obdobi -> 1-12/2009
C30: Klinika | D30: Klinika č. | E30: Ztráta
C31: I. Interní klinika | D31: 01 | E31: 26890
C32: II. Interní klinika | D32: 02 | E32: 5245
C33: II. Chirurgická klinika | D33: 05 | E33: 1047
C34: Neurochirurgická klinika | D34: 06 | E34: 5981
C35: Klinika anesteziologie a resus | D35: 07 | E35: 14422
C36: Porodnicko-gynekologická klini | D36: 08 | E36: 1823
C37: Dětská klinika | D37: 10 | E37: 8207
C38: Otolaryngologická klinika | D38: 13 | E38: 3629
C39: Oční klinika | D39: 14 | E39: 9906
C40: Klinika plicních nemocí a tube | D40: 16 | E40: 9609
C41: Neurologická klinika | D41: 17 | E41: 759
C42: Klinika psychiatrie | D42: 18 | E42: 462
C43: Klinika chorob kožních a pohl. | D43: 20 | E43: 2837
C44: Klinika zubního lékařství | D44: 24 | E44: 2564
C45: Klinika rehabilit. a tělových. | D45: 26 | E45: 3520
C46: Oddělení plastické a estetické | D46: 29 | E46: 832
C47: Oddělení geriatrie | D47: 30 | E47: 3950
C48: Traumatologické oddělení | D48: 31 | E48: 5421
C49: Oddělení klinické psychologie | D49: 39 | E49: 1030
C50: Transplantační centrum | D50: 46 | E50: 8
C51: Centrální operační sály | D51: 47 | E51: 6085
C52: Lékárna | D52: 48 | E52: 2146
C53: Kardiochirurgická klinika | D53: 50 | E53: 8047
C54: Oddělení lékařské fyziky a rad | D54: 53 | E54: 324
C55: Oddělení urgentního příjmu | D55: 60 | E55: 2057

Sheet Ztrátové kliniky FN Olomouc-0 (hidden)
A1: Ztrátové kliniky FN Olomouc
A2: =dat_obdobi -> 1-12/2009
C30: Klinika | D30: Klinika č. | E30: Ztráta
C31: I. Interní klinika | D31: 01 | E31: 11894
C32: II. Interní klinika | D32: 02 | E32: 20341
C33: III. Interní klinika | D33: 03 | E33: 4631
C34: I. Chirurgická klinika | D34: 04 | E34: 27117
C35: II. Chirurgická klinika | D35: 05 | E35: 6120
C36: Neurochirurgická klinika | D36: 06 | E36: 4673
C37: Klinika anesteziologie a resus | D37: 07 | E37: 8482
C38: Porodnicko-gynekologická klini | D38: 08 | E38: 12340
C39: Dětská klinika | D39: 10 | E39: 20800
C40: Ortopedická klinika | D40: 11 | E40: 6027
C41: Urologická klinika | D41: 12 | E41: 19059
C42: Otolaryngologická klinika | D42: 13 | E42: 16269
C43: Oční klinika | D43: 14 | E43: 6635
C44: Oddělení alergologie | D44: 15 | E44: 1677
C45: Klinika plicních nemocí a tube | D45: 16 | E45: 21955
C46: Neurologická klinika | D46: 17 | E46: 19269
C47: Klinika psychiatrie | D47: 18 | E47: 2426
C48: Klinika pracovního lékařství | D48: 19 | E48: 2257
C49: Klinika chorob kožních a pohl. | D49: 20 | E49: 5190
C50: Klinika zubního lékařství | D50: 24 | E50: 10287
C51: Klinika ústní,čelistní a obl. | D51: 25 | E51: 3866
C52: Oddělení plastické a estetické | D52: 29 | E52: 6820
C53: Oddělení geriatrie | D53: 30 | E53: 14688
C54: Traumatologické oddělení | D54: 31 | E54: 21483
C55: Oddělení klinické logopedie | D55: 36 | E55: 626
C56: Ústav soudního lékařství a med | D56: 38 | E56: 5274
C57: Oddělení klinické psychologie | D57: 39 | E57: 679
C58: Ústav farmakologie | D58: 43 | E58: 1422
C59: Sociální oddělení | D59: 45 | E59: 1866
C60: Transplantační centrum | D60: 46 | E60: 8
C61: Centrální operační sály | D61: 47 | E61: 49722
C62: Lékárna | D62: 48 | E62: 2438
C63: Oddělení lékařské fyziky a rad | D63: 53 | E63: 5352
C64: Oddělení centrální sterilizace | D64: 56 | E64: 21784
C65: Oddělení urgentního příjmu | D65: 60 | E65: 34017

Sheet Vývoj stavu zásob-5
A1: Vývoj stavu zásob
A2: =CONCATENATE(" v průběhu roku ",dat_rok) -> v průběhu roku 2009
B31: Poč.stav | C31: leden | D31: únor | E31: březen | F31: duben | G31: květen | H31: červen | I31: červenec | J31: srpen | K31: září | L31: říjen | M31: listopad | N31: prosinec
A32: Zásoby celkem | B32: 54778 | C32: 61574 | D32: 59058 | E32: 60124 | F32: 61299 | G32: 61617 | H32: 64108 | I32: 60222 | J32: 58241 | K32: 66200 | L32: 66301 | M32: 75035 | N32: 63132
A33: Léky | B33: 27741 | C33: 31181 | D33: 29761 | E33: 32484 | F33: 31602 | G33: 33401 | H33: 33397 | I33: 34038 | J33: 30476 | K33: 36496 | L33: 39545 | M33: 45749 | N33: 34109
A34: z toho RTG diagn. | B34: 13 | C34: 24 | D34: 28 | E34: 58 | F34: 845 | G34: 74 | H34: 59 | I34: 18 | J34: 382 | K34: 85 | L34: 306 | M34: 213 | N34: 313
A35: Krev | B35: 17087 | C35: 18769 | D35: 18166 | E35: 16067 | F35: 16799 | G35: 15927 | H35: 15508 | I35: 14674 | J35: 16152 | K35: 16245 | L35: 15610 | M35: 13293 | N35: 16522
A36: SZM | B36: 2940 | C36: 4368 | D36: 4545 | E36: 4962 | F36: 4643 | G36: 4424 | H36: 4969 | I36: 3814 | J36: 4682 | K36: 6010 | L36: 4373 | M36: 6566 | N36: 4824
A37: z toho lab. diagn.*
A38: Mater.na cestě | B38: 479 | C38: 587 | D38: 48 | E38: 277 | F38: 642 | G38: 726 | H38: 746 | I38: 677 | J38: 256 | K38: 1211 | L38: 746 | M38: 1647 | N38: 787
A40: * včetně meziskladů

Sheet Přehled o čerpání nákladů-6
B1: =CONCATENATE("Přehled o čerpání nákladů roku ",dat_rok) -> Přehled o čerpání nákladů roku 2009
E3: (v tis.Kč)
A5: Položka | B5: =PLAN_rok -> PLÁN 2009 | C5: Poměr pl. | D5: =Skut_typobd -> Skut. 1-12/2009 | E5: SK/PL v %
A6: 501 10 Biologické implantáty | B6: 6200 | C6: =B6/12*(MONTH(dat_do)-MONTH(dat_od)+1) -> 6200 | D6: 4230.306 | E6: =IF(B6<>0,D6/B6*100,0) -> 68.23074194
A7: 501 12 PHM | B7: 2250 | C7: =B7/12*(MONTH(dat_do)-MONTH(dat_od)+1) -> 2250 | D7: 2110.58923 | E7: 93.80396578
A8: 501 13 Léky | B8: 732300 | C8: 732300 | D8: 827917.375 | E8: 113.0571316
A9: 501 14 Krev | B9: 42500 | C9: 42500 | D9: 51439.56703 | E9: 121.0342754
A10: 501 15 SZM | B10: 525152 | C10: 525152 | D10: 692028.6411 | E10: 131.7768267
A11: 501 16 Potraviny | B11: 38536 | C11: 38536 | D11: 37766.67455 | E11: 98.00361882
A12: 501 17 Všeobecný materiál | B12: 28365 | C12: 28365 | D12: 39966.36325 | E12: 140.9002759
A13: 501 18 Náhradní díly | B13: 11214 | C13: 11214 | D13: 18106.92015 | E13: 161.467096
A14: 501 19 DHM a textil | B14: 19800 | C14: 19800 | D14: 45053.5968 | E14: 227.5434182
A15: 501 60 Knihy a časopisy | B15: 300 | C15: 300 | D15: 982.38523 | E15: 327.4617433
A16: 501 80 Spotř.nák.-z darů, kl.stud. | B16: 4000 | C16: 4000 | D16: 5352.71344 | E16: 133.817836
A17: 502 Spotřeba energie | B17: 108500 | C17: 108500 | D17: 105085.3752 | E17: 96.85288038
A18: 504 01 Prodané zboží | B18: 3500 | C18: 3500 | D18: 3211.24537 | E18: 91.74986771
A19: 504 95 Prodané LS | B19: 303740 | C19: 303740 | D19: 319943.7176 | E19: 105.3347329
A20: 501 99 Opravy nákl. min. let | B20: 0 | C20: 0 | D20: 9.0149 | E20: 0
A21: Spotřebované nákupy | B21: =SUM(B6:B20) -> 1826357 | C21: 1826357 | D21: =SUM(D6:D20) -> 2153204.485 | E21: 117.8961443
A22: 511 Opravy a udržování | B22: 41650 | C22: 41650 | D22: 48774.45323 | E22: 117.10553
A23: 512 Cestovné | B23: 2300 | C23: 2300 | D23: 3479.31509 | E23: 151.2745691
A24: 513 Náklady na reprezentaci | B24: 200 | C24: 200 | D24: 153.24921 | E24: 76.624605
A25: 518 01 Přepravné | B25: 400 | C25: 400 | D25: 512.45484 | E25: 128.11371
A26: 518 02 Spoje | B26: 5650 | C26: 5650 | D26: 5415.33171 | E26: 95.84657894
A27: 518 04 Nájemné | B27: 6560 | C27: 6560 | D27: 9996.98745 | E27: 152.3931014
A28: 518 Ostatní služby | B28: 116920 | C28: 116920 | D28: 129585.2502 | E28: 110.8324069
A29: 521 Osobní náklady | B29: 1043500 | C29: 1043500 | D29: 1113895.927 | E29: 106.7461357
A30: 524 Zákonné sociální pojištění | B30: 354790 | C30: 354790 | D30: 368469.086 | E30: 103.8555444
A31: 525 Ostatní sociální pojištění | B31: 4368 | C31: 4368 | D31: 5763.45232 | E31: 131.9471685
A32: 527 Zákon. soc. poj. (FKSP) | B32: 20800 | C32: 20800 | D32: 22108.72981 | E32: 106.2919702
A33: 528 Náhrady-prac.nesch. | B33: 0 | C33: 0 | D33: 1178.309 | E33: 0
A34: 53 Daně a poplatky | B34: 622 | C34: 622 | D34: 435.369 | E34: 69.99501608
A35: 54 Ostatní náklady | B35: 8743 | C35: 8743 | D35: 35928.65836 | E35: 410.941992
A36: 551 Odpisy | B36: 286500 | C36: 286500 | D36: 265821.943 | E36: 92.7825281
A37: 552 ZC prod. IM | B37: 0 | C37: 0 | D37: 0 | E37: 0
A38: 554 Prodaný mat. vč. krve | B38: 25400 | C38: 25400 | D38: 40788.83077 | E38: 160.5859479
A39: 556 Tvorba zák. rezerv | B39: 0 | C39: 0 | D39: 0 | E39: 0
A40: 59 Daň z příjmů | B40: 12654 | C40: 12654 | D40: 24275.15 | E40: 191.8377588
A41: Přímé náklady celkem | B41: =SUM(B21:B40) -> 3757414 | C41: =SUM(C21:C40) -> 3757414 | D41: =SUM(D21:D40) -> 4229786.981 | E41: 112.5717576

Sheet Náklady FN Olomouc v tis.Kč-7 (hidden)
A1: Náklady FN Olomouc v tis. Kč
A2: =dat_obdobi -> 1-12/2009
C24: Náklady FN Olomouc v tis. Kč
C25: Léky | D25: 827917
C26: Krev | D26: 51440
C27: SZM | D27: 692029
C28: Potraviny | D28: 37767
C29: Energie | D29: 105085
C30: Osobní náklady | D30: 1511416
C31: Odpisy | D31: 265822
C32: Prodané zboží LS | D32: 319944
C33: Ostatní | D33: =D34-SUM(D25:D32) -> 418367
C34: Celkem | D34: 4229787
A37: Podíl ukazatelů z celkových nákladů
A38: =dat_obdobi -> 1-12/2009

Sheet Čerpání vybraných nákladů-8 (hidden)
A1: Čerpání vybraných nákladů
A2: =CONCATENATE(" v jednotlivých měsících roku ", dat_rok) -> v jednotlivých měsících roku 2009
A27: Název | B27: rozpočet | C27: leden | D27: únor | E27: březen | F27: duben | G27: květen | H27: červen | I27: červenec | J27: srpen | K27: září | L27: říjen | M27: listopad | N27: prosinec
A28: Léky | B28: 61025 | C28: 64135 | D28: 65027 | E28: 68696 | F28: 80236 | G28: 63021 | H28: 63793 | I28: 67748 | J28: 61456 | K28: 70615 | L28: 82050 | M28: 71107 | N28: 70034
A29: Krev | B29: 3542 | C29: 2539 | D29: 3003 | E29: 3156 | F29: 7300 | G29: 3970 | H29: 4447 | I29: 3900 | J29: 4107 | K29: 4749 | L29: 5573 | M29: 4605 | N29: 4092
A30: SZM | B30: 43763 | C30: 47974 | D30: 44363 | E30: 56102 | F30: 49512 | G30: 48502 | H30: 53931 | I30: 43608 | J30: 51800 | K30: 57168 | L30: 67063 | M30: 84558 | N30: 87448

Sheet Přehled o výnosech roku-9
B1: =CONCATENATE("Přehled o výnosech roku ",dat_rok) -> Přehled o výnosech roku 2009
E3: (v tis. Kč)
A5: Položka | B5: =PLAN_rok -> PLÁN 2009 | C5: Poměr pl. | D5: =Skut_typobd -> Skut. 1-12/2009 | E5: SK/PL v %
A6: 601 Tržby za vlastní výrobky | B6: 0 | C6: =B6/12*(MONTH(dat_do)-MONTH(dat_od)+1) -> 0 | D6: 0 | E6: =IF(B6<>0,D6/B6*100,0) -> 0
A7: 602 10,11,13,14 Zdrav. sl. za úhr. | B7: 60550 | C7: =B7/12*(MONTH(dat_do)-MONTH(dat_od)+1) -> 60550 | D7: 60255.6635 | E7: 99.51389513
A8: 602 27 Zdr.sl. - výkony ředění cytostatik | B8: 0 | C8: 0 | D8: 2768.71603 | E8: 0
A9: 602 28, 29 Zdrav. výk. - běžný rok | B9: 53114 | C9: 53114 | D9: 256058.2431 | E9: 482.0918084
A10: 602 40,42,43,46 Zdrav.vyk.-min.let | B10: 0 | C10: 0 | D10: 114583.3739 | E10: 0
A11: 602 45 Fakturace ZP - běžný rok | B11: 3071916 | C11: 3071916 | D11: 3073589.928 | E11: 100.0544913
A12: 602 Ostatní služby | B12: 900 | C12: 900 | D12: 1348.57495 | E12: 149.8416611
A13: 604 Prodej zboží | B13: 4370 | C13: 4370 | D13: 4084.09286 | E13: 93.45750252
A14: 604 Prodané léky a léčiva | B14: 337695 | C14: 337695 | D14: 354535.429 | E14: 104.9868754
A15: 62 Aktivace - krev a KV | B15: 69400 | C15: 69400 | D15: 85849.87369 | E15: 123.702988
A16: 648 01,02,03 Použití RF | B16: 2000 | C16: 2000 | D16: 2818.40729 | E16: 140.9203645
A17: 648 04 Použití FRM | B17: 41650 | C17: 41650 | D17: -3.725290298e-12 | E17: -8.944274426e-15
A18: 649 11,13,14,25 Tržby z nájem. | B18: 28950 | C18: 28950 | D18: 33157.9709 | E18: 114.5353054
A19: 64 Ostatní výnosy | B19: 108113 | C19: 108113 | D19: 153018.5752 | E19: 141.5357776
A20: 65 Tržby z prodeje materiálu a majetku | B20: 25520 | C20: 25520 | D20: 45979.79623 | E20: 180.1716153
A21: 691 Provozní dotace | B21: 3850 | C21: 3850 | D21: 44207.08998 | E21: 1148.236103
A22: Přímé výnosy celkem | B22: =SUM(B6:B21) -> 3808028 | C22: =SUM(C6:C21) -> 3808028 | D22: =SUM(D6:D21) -> 4232255.734 | E22: 111.1403523

Sheet Výnosy FN Olomouc v tis.Kč-10 (hidden)
A1: Výnosy FN Olomouc v tis. Kč
A2: =dat_obdobi -> 1-12/2009
C23: Výnosy FN Olomouc v tis. Kč
C24: Provozní dotace | D24: 44207.08998
C25: Výkony pro zdr.poj. | D25: !DEFINICE!
C26: Aktivace | D26: 85849.87369
C27: Tržby za léčiva | D27: 354535.429
C28: Ostatní výnosy | D28: =D29-SUM(D23:D27) -> 3747663.342
C29: Celkem | D29: 4232255.734
A34: Podíl ukazatelů z celkových výnosů
A35: =dat_obdobi -> 1-12/2009

Sheet Srovnání nákladů, výnosů a m-11 (hidden)
A1: Srovnání nákladů, výnosů a os. nákladů
A2: =CONCATENATE(" v jednotlivých měsících roku ",dat_rok) -> v jednotlivých měsících roku 2009
B31: leden | C31: únor | D31: březen | E31: duben | F31: květen | G31: červen | H31: červenec | I31: srpen | J31: září | K31: říjen | L31: listopad | M31: prosinec
A32: př. náklady | B32: 323329 | C32: 301656 | D32: 333821 | E32: 334925 | F32: 323913 | G32: 327130 | H32: 340500 | I32: 322292 | J32: 368941 | K32: 382151 | L32: 396024 | M32: 475105
A33: př. výnosy | B33: 329821 | C33: 319964 | D33: 325884 | E33: 329152 | F33: 370250 | G33: 369001 | H33: 392340 | I33: 363405 | J33: 344014 | K33: 366433 | L33: 402488 | M33: 319504
A34: os. náklady | B34: 115434 | C34: 110977 | D34: 114264 | E34: 115428 | F34: 121392 | G34: 119582 | H34: 133481 | I34: 125690 | J34: 145347 | K34: 130716 | L34: 141312 | M34: 137792

Sheet Srovnání nákladů a výnosů mě-12
A1: =CONCATENATE(" Srovnání nákladů a výnosů v roce ",dat_rok) -> Srovnání nákladů a výnosů v roce 2009
A2: =CONCATENATE(" se stejným obdobím roku ",dat_rok-1) -> se stejným obdobím roku 2008
A6: Položka | B6: =mesic_rokpredchoz -> 2008-12-30 | C6: % | D6: =mesic_rok -> 2009-12-31 | E6: % | F6: Rozdíl
A7: Léky | B7: 56193 | C7: =B7/B$19*100 -> 26.65929728 | D7: 70034 | E7: =D7/D$19*100 -> 13.47342274 | F7: =D7-B7 -> 13841
A8: Krev | B8: 3009 | C8: 1.427541251 | D8: 4092 | E8: 0.7872354266 | F8: =D8-B8 -> 1083
A9: SZM | B9: 56825 | C9: 26.95913313 | D9: 87448 | E9: 16.82359814 | F9: 30623
A10: Potraviny | B10: 2744 | C10: 1.301818941 | D10: 2965 | E10: 0.5704186314 | F10: 221
A11: Všeobecný materiál | B11: 3498 | C11: 1.659534495 | D11: 6707 | E11: 1.29031965 | F11: 3209
A12: Spotřeba energie | B12: 12382 | C12: 5.874315644 | D12: 12627 | E12: 2.429233072 | F12: 245
A13: Opravy a udržování | B13: 6899 | C13: 3.273049881 | D13: 12571 | E13: 2.418459567 | F13: 5672
A14: Osobní náklady | B14: 116464 | C14: 55.25329487 | D14: 137792.261 | E14: 26.50902966 | F14: 21328.26102
A15: Odpisy | B15: -123755 | C15: -58.71231889 | D15: 22799 | E15: 4.386163365 | F15: 146554
A16: Vnitropodnik. náklady | B16: 12331 | C16: 5.850120029 | D16: 44689 | E16: 8.597449652 | F16: 32358
A17: Ostatní náklady | B17: =B19- SUM(B7:B16) - B18 -> 64192 | C17: 30.45421336 | D17: =D19- SUM(D7:D16) - D18 -> 118069.4197 | E17: 22.71467009 | F17: 53877.41974
A18: Opravy nákladů min. let | B18: 0 | C18: 0 | D18: 0 | E18: 0 | F18: 0
A19: Náklady celkem | B19: 210782 | C19: 100 | D19: 519793.6808 | E19: 100 | F19: 309011.6808
A20: Tržby za vl. výrobky | B20: 0 | C20: =B20/B$36*100 -> 0 | D20: 0 | E20: =D20/D$36*100 -> 0 | F20: 0
A21: Zdr. služby za úhradu | B21: 5027.42575 | C21: 1.766755255 | D21: 5468.51385 | E21: 1.501540723 | F21: 441.0881
A22: Tržby z nájemného | B22: 4275.11335 | C22: 1.502375043 | D22: 3200.79397 | E22: 0.878871778 | F22: -1074.31938
A23: Výkony ředění cytostatik | B23: 0 | C23: 0 | D23: -100 | E23: -0.02745793032 | F23: -100
A24: Zdrav. výk. - běžný rok | B24: 32807.16606 | C24: 11.52920717 | D24: 34148.62938 | E24: 9.376506861 | F24: 1341.46332
A25: Zdrav. výk. - min. let | B25: -52651 | C25: -18.50279557 | D25: -66878.10247 | E25: -18.36334278 | F25: -14227.10247
A26: Fakturace ZP - běžný rok | B26: 238457.6527 | C26: 83.79960875 | D26: 302843.2447 | E26: 83.1544871 | F26: 64385.59199
A27: Ostatní služby | B27: 98.5518 | C27: 0.03463341264 | D27: 103.3524 | E27: 0.02837842998 | F27: 4.8006
A28: Tržby za prodané léky | B28: 32478 | C28: 11.41353051 | D28: 33495 | E28: 9.197033761 | F28: 1017
A29: Ost. tržby za prodané zboží | B29: 263 | C29: 0.09242436489 | D29: 301 | E29: 0.08264837027 | F29: 38
A30: Aktivace - krev a KV | B30: 5774 | C30: 2.029118946 | D30: 7164 | E30: 1.967086128 | F30: 1390
A31: Tržby z prodeje materiálu a majetku | B31: 22600 | C31: 7.942169759 | D31: 1415 | E31: 0.3885297141 | F31: -21185
A32: Provozní dotace od zřizovatele | B32: 113 | C32: 0.03971084879 | D32: 13194 | E32: 3.622799327 | F32: 13081
A33: Vnitropodnik. výnosy | B33: 12331 | C33: 4.333402447 | D33: 44689 | E33: 12.27067448 | F33: 32358
A34: Použití rezervního fondu | B34: 463 | C34: 0.162709053 | D34: 568 | E34: 0.1559610442 | F34: 105
A35: Ostatní výnosy | B35: =B36 - SUM(B20:B34) -> -17479.90962 | C35: -6.142849981 | D35: -15418.92256 | E35: -4.233717013 | F35: 2060.98706
A36: Výnosy celkem | B36: 284557 | C36: 100 | D36: =SUM(D20:D35) -> 364193.5092 | E36: 100 | F36: 79636.50922
A37: Hospodářský výsledek | B37: =B36-B19 -> 73775 | D37: =D36-D19 -> -155600.1715 | F37: -229375.1715
A38: Průměrný počet lůžek | B38: 1406 | D38: 1393 | F38: -13
A39: Počet oš. dnů | B39: 31775 | D39: 32306 | F39: 531
A40: Prům. nákl. na lůžkoden (hospit.) | B40: 2488.77328 | D40: 3462.156325 | F40: 973.3830452
A41: Prům. náklady na oš. den FNO | B41: 5309.202837 | D41: 13753.54333 | F41: 8444.340496
A44: Rozdíl:
A45: úspora nákladů (-)
A46: překročení nákladů (+)
A47: snížení výnosů (-)
A48: překročení výnosů (+)

Sheet Srovnání nákladů a výnosů na-13
A1: Srovnání nákladů a výnosů v roce | D1: =dat_rok -> 2009
A2: se stejným obdobím roku | C2: =dat_rok-1 -> 2008
A6: Položka | B6: =dat_obdobirokpredch -> 1-12/2008 | C6: % | D6: =dat_obdobi -> 1-12/2009 | E6: % | F6: Rozdíl
A7: Léky | B7: 706639 | C7: =B7/B$19*100 -> 19.31765899 | D7: 827917 | E7: =D7/D$19*100 -> 18.28033415 | F7: =D7-B7 -> 121278
A8: Krev | B8: 41068 | C8: 1.122691529 | D8: 51440 | E8: 1.135790651 | F8: =D8-B8 -> 10372
A9: SZM | B9: 586143 | C9: 16.02361403 | D9: 692029 | E9: 15.27993913 | F9: 105886
A10: Potraviny | B10: 37835 | C10: 1.034309779 | D10: 37767 | E10: 0.8338920204 | F10: -68
A11: Všeobecný materiál | B11: 30730 | C11: 0.8400776928 | D11: 39966 | E11: 0.8824457459 | F11: 9236
A12: Spotřeba energie | B12: 101888 | C12: 2.785350991 | D12: 105085 | E12: 2.320267508 | F12: 3197
A13: Opravy a udržování | B13: 46497 | C13: 1.271106166 | D13: 48774 | E13: 1.076925607 | F13: 2277
A14: Osobní náklady | B14: 1381429 | C14: 37.76464976 | D14: 1511415.504 | E14: 33.37192067 | F14: 129986.5036
A15: Odpisy | B15: 119489 | C15: 3.26651622 | D15: 265822 | E15: 5.869326254 | F15: 146333
A16: Vnitropodnik. náklady | B16: 105988 | C16: 2.89743425 | D16: 299217 | E16: 6.606684901 | F16: 193229
A17: Ostatní náklady | B17: =B19 - SUM(B7:B16) - B18 -> 500271 | C17: 13.67609852 | D17: =D19 - SUM(D7:D16) - D18 -> 649562.1417 | E17: 14.34227465 | F17: 149291.1417
A18: Opravy nákladů min. let | B18: 18 | C18: 0.0004920728432 | D18: 9 | E18: 0.0001987192042 | F18: -9
A19: Náklady celkem | B19: 3657995 | C19: 100 | D19: 4529003.645 | E19: =SUM(E7:E17) -> 99.99980128 | F19: 871008.6453
A20: Tržby za vl. výrobky | B20: 0 | C20: =B20/B$36*100 -> 0 | D20: 0 | E20: =D20/D$19*100 -> 0 | F20: 0
A21: Zdr. služby za úhradu | B21: 61051.91493 | C21: 1.620650526 | D21: 60255.6635 | E21: 1.330439722 | F21: -796.25143
A22: Tržby z nájemného | B22: 30552.96632 | C22: 0.8110422253 | D22: 33157.9709 | E22: 0.7321250654 | F22: 2605.00458
A23: Výkony ředění cytostatik | B23: 0 | C23: 0 | D23: 2769 | E23: 0.06113927514 | F23: 2769
A24: Zdrav. výk. - běžný rok | B24: 265714.7487 | C24: 7.053517451 | D24: 256058.2431 | E24: 5.653743366 | F24: -9656.50563
A25: Zdrav. výk. - min. let | B25: 28022.13871 | C25: 0.7438602687 | D25: 114583.3739 | E25: 2.529990764 | F25: 86561.23523
A26: Fakturace ZP - běžný rok | B26: 2646063.8 | C26: 70.24095304 | D26: 3073589.928 | E26: 67.86459381 | F26: 427526.1278
A27: Ostatní služby | B27: 967.97286 | C27: 0.0256952747 | D27: 1348.57495 | E27: =D27/D$36*100 -> 0.02976019386 | F27: 380.60209
A28: Tržby za prodané léky | B28: 343337 | C28: 9.114035004 | D28: 354535 | E28: 7.823836807 | F28: 11198
A29: Ost. tržby za prodané zboží | B29: 4223 | C29: 0.1121014333 | D29: 4084 | E29: 0.09012523311 | F29: -139
A30: Aktivace - krev a KV | B30: 74213 | C30: 1.970017446 | D30: 85850 | E30: 1.894527733 | F30: 11637
A31: Tržby z prodeje materiálu a majetku | B31: 80973 | C31: 2.149464684 | D31: 45980 | E31: 1.014681248 | F31: -34993
A32: Provozní dotace od zřizovatele | B32: 19398 | C32: 0.5149286299 | D32: 44207 | E32: 0.9755548923 | F32: 24809
A33: Vnitropodnik. výnosy | B33: 105988 | C33: 2.813499104 | D33: 299217 | E33: 6.60308567 | F33: 193229
A34: Použití rezerv. Fondu | B34: 2427 | C34: 0.064425806 | D34: 2818 | E34: 0.06218729356 | F34: 391
A35: Ostatní výnosy | B35: =B36 - SUM(B20:B34) -> 104191.4585 | C35: 2.765809103 | D35: 153018.5752 | E35: 3.376795974 | F35: 48827.11667
A36: Výnosy celkem | B36: 3767124 | C36: 100 | D36: =SUM(D20:D35) -> 4531472.329 | E36: 100 | F36: 764348.3293
A37: Hospodářský výsledek | B37: =B36-B19 -> 109129 | D37: =D36-D19 -> 2468.684 | F37: -106660.316
A38: Průměrný počet lůžek | B38: 1412.5 | D38: 1395 | F38: -17.5
A39: Počet oš. dnů | B39: 366378 | D39: 356156 | F39: -10222
A40: Prům. nákl. na lůžkoden (hospit.) | B40: 2721.079741 | D40: 3033.994285 | F40: 312.9145433
A41: Prům. náklady na oš. den FNO | B41: 8835.901018 | D41: 10968.87886 | F41: 2132.97784
A44: Rozdíl:
A45: úspora nákladů (-)
A46: překročení nákladů (+)
A47: snížení výnosů (-)
A48: překročení výnosů (+)

Sheet Srovnání měs.přímých nákladů-14
A1: Srovnání měsíčních přímých nákladů
A2: =CONCATENATE("v letech ",(dat_rok - 3)," - ",(dat_rok)) -> v letech 2006 - 2009
G25: =dat_rok-3 -> 2006 | H25: =dat_rok-2 -> 2007 | I25: =dat_rok-1 -> 2008 | J25: =dat_rok -> 2009
F26: leden | G26: 255684 | H26: 281893 | I26: 314446 | J26: 323329
F27: únor | G27: 262571 | H27: 256650 | I27: 291124 | J27: 301656
F28: březen | G28: 257767 | H28: 290042 | I28: 307756 | J28: 333821
F29: duben | G29: 249745 | H29: 272114 | I29: 310025 | J29: 334925
F30: květen | G30: 271526 | H30: 281236 | I30: 299979 | J30: 323913
F31: červen | G31: 239574 | H31: 308643 | I31: 241350 | J31: 327130
F32: červenec | G32: 262393 | H32: 288462 | I32: 323227 | J32: 340500
F33: srpen | G33: 258188 | H33: 282016 | I33: 295521 | J33: 322292
F34: září | G34: 257499 | H34: 268948 | I34: 314214 | J34: 368941
F35: říjen | G35: 266105 | H35: 304485 | I35: 325578 | J35: 382151
F36: listopad | G36: 282890 | H36: 317797 | I36: 330337 | J36: 396024
F37: prosinec | G37: 245341 | H37: 374472 | I37: 198450 | J37: 475105

Sheet Náklady na lůžkoden-15
A1: Náklady na lůžkoden
A2: =CONCATENATE("ve FN Olomouc v roce ",dat_rok) -> ve FN Olomouc v roce 2009
A8: Počet ošetř. dnů | B8: 32306 | D8: =mesic_rok -> 2009-12-31
A9: Druh nákladu | B9: v tis. Kč | C9: Kč/den | D9: %
A10: Léky a léčiva | B10: 16179.75182 | C10: =B10*1000/B8 -> 500.8280759 | D10: =C10/C17*100 -> 14.46578458
A11: Krev a KV | B11: 3508.407 | C11: =B11*1000/B8 -> 108.5992385 | D11: =C11/C17*100 -> 3.136751444
A12: SZM | B12: 4685.32372 | C12: =B12*1000/B8 -> 145.0295215 | D12: =C12/C17*100 -> 4.188994021
A13: Potraviny | B13: 1270.74495 | C13: =B13*1000/B8 -> 39.33464217 | D13: =C13/C17*100 -> 1.136131315
A14: Prádlo | B14: 331.54762 | C14: =B14*1000/B8 -> 10.26272581 | D14: =C14/C17*100 -> 0.2964258354
A15: Mzdy | B15: 48398.07588 | C15: =B15*1000/B8 -> 1498.114155 | D15: =C15/C17*100 -> 43.27112972
A16: Ost.nákl. v lůžkové č. | B16: 37474.57125 | C16: =B16*1000/B8 -> 1159.987967 | D16: =C16/C17*100 -> 33.50478308
A17: Náklady celkem | B17: =SUM(B10:B16) -> 111848.4222 | C17: =SUM(C10:C16) -> 3462.156325 | D17: =SUM(D10:D16) -> 100
A22: Počet ošetř. dnů | B22: 356156 | D22: =dat_obdobi -> 1-12/2009
A23: Druh nákladu | B23: v tis. Kč | C23: Kč/den | D23: %
A24: Léky a léčiva | B24: 172829.7904 | C24: =B24*1000/B22 -> 485.2642955 | D24: =C24/C31*100 -> 15.99423894
A25: Krev a KV | B25: 45592.61148 | C25: =B25*1000/B22 -> 128.0130378 | D25: =C25/C31*100 -> 4.21929067
A26: SZM | B26: 47248.53357 | C26: =B26*1000/B22 -> 132.6624669 | D26: =C26/C31*100 -> 4.372535162
A27: Potraviny | B27: 17429.36289 | C27: =B27*1000/B22 -> 48.93744003 | D27: =C27/C31*100 -> 1.612970739
A28: Prádlo | B28: 3196.94301 | C28: =B28*1000/B22 -> 8.976243584 | D28: =C28/C31*100 -> 0.2958556524
A29: Mzdy | B29: 541609.8498 | C29: =B29*1000/B22 -> 1520.709604 | D29: =C29/C31*100 -> 50.12236219
A30: Ost.nákl. v lůžkové č. | B30: 252668.1773 | C30: =B30*1000/B22 -> 709.4311969 | D30: =C30/C31*100 -> 23.38274665
A31: Náklady celkem | B31: =SUM(B24:B30) -> 1080575.268 | C31: =SUM(C24:C30) -> 3033.994285 | D31: =SUM(D24:D30) -> 100

Sheet LF měsíční
A1: Fakultní nemocnice Olomouc Prosinec 2009 | G1: P R O S I N E C 2 0 0 9
A3: LŮŽKOVÝ FOND A JEHO VYUŽITÍ VČETNĚ SVLS
AF4: Počet dnů: 31
A5: Klinika |Poč.| Počet ošetřovanců |Prům|Skut. |Uzav.|Počet |Využ.lůžek |Prům.|Počet
A6: |lůž.|-----------------------------|den.|lůžko.|lůžka|ošetř. |-----------|ošetř|hosp.
A7: | |PŘIJ |exTR+|PROP |exTR-|Úmrtí|p.ho|kapac.| |dnů | dny | % |doba |
A8: ==============================================================================================
A9: 1.IK | 63| 267| 7| 272| 22| 7| 48| 1645| 308| 1475 | 23,4| 89,7| 5,1| 288
A10: 2.IK | 62| 178| 12| 168| 15| 12| 45| 1922| 0| 1382 | 22,3| 71,9| 7,2| 193
A11: 3.IK | 70| 153| 16| 187| 16| 8| 46| 1684| 486| 1418 | 20,3| 84,2| 7,5| 190
A12: GER | 90| 6| 36| 64| 6| 6| 35| 1300| 1490| 1100 | 12,2| 84,6| 18,6| 59
A13: PLIC | 61| 112| 17| 151| 13| 6| 31| 1435| 456| 972 | 15,9| 67,7| 6,5| 150
A14: NEUR | 72| 120| 2| 123| 17| 3| 41| 1722| 510| 1267 | 17,6| 73,6| 9,6| 133
A15: PSY | 90| 30| 2| 42| 0| 0| 17| 1026| 1764| 542 | 6,0| 52,8| 14,6| 37
A16: DK | 100| 409| 3| 436| 1| 1| 63| 3100| 0| 1948 | 19,5| 62,8| 4,6| 425
A17: PORGYN | 87| 321| 3| 329| 5| 0| 56| 2238| 459| 1749 | 20,1| 78,2| 5,3| 329
A18: NOVO | 50| 194| 1| 179| 1| 4| 45| 1550| 0| 1409 | 28,2| 90,9| 7,4| 190
A19: 1CHIR | 86| 139| 43| 199| 39| 4| 50| 1928| 738| 1559 | 18,1| 80,9| 7,4| 212
A20: 2CHIR | 33| 81| 4| 106| 5| 1| 20| 1023| 0| 612 | 18,5| 59,8| 6,2| 99
A21: NCHIR | 44| 100| 7| 123| 4| 1| 27| 1208| 156| 826 | 18,8| 68,4| 7,0| 118
A22: PCHIR | 18| 60| 0| 72| 0| 0| 8| 396| 162| 250 | 13,9| 63,1| 3,8| 66
A23: KCHIR | 41| 28| 16| 62| 0| 6| 20| 1062| 209| 627 | 15,3| 59,0| 11,2| 56
A24: TRAUM | 33| 124| 7| 131| 17| 0| 19| 1023| 0| 583 | 17,7| 57,0| 4,2| 140
A25: KAR | 10| 16| 27| 8| 23| 12| 7| 240| 70| 209 | 20,9| 87,1| 4,9| 43
A26: ORT | 72| 141| 3| 175| 12| 0| 29| 1231| 1001| 913 | 12,7| 74,2| 5,5| 166
A27: URO | 32| 63| 21| 86| 20| 1| 16| 593| 399| 482 | 15,1| 81,3| 5,0| 96
A28: ORL | 40| 94| 1| 123| 2| 0| 17| 792| 448| 515 | 12,9| 65,0| 4,7| 110
A29: OCNI | 26| 53| 0| 70| 0| 0| 12| 806| 0| 366 | 14,1| 45,4| 6,0| 62
A30: KOZNI | 26| 47| 1| 57| 2| 0| 16| 533| 273| 485 | 18,7| 91,0| 9,1| 54
A31: ONK | 64| 164| 1| 200| 5| 2| 30| 1375| 609| 916 | 14,3| 66,6| 4,9| 186
A32: HOK | 34| 58| 3| 67| 6| 0| 21| 1054| 0| 641 | 18,9| 60,8| 9,6| 67
A33: REH | 28| 3| 10| 37| 3| 0| 14| 504| 364| 421 | 15,0| 83,5| 15,9| 27
A34: KNM | 10| 16| 0| 24| 0| 0| 4| 150| 160| 124 | 12,4| 82,7| 6,2| 20
A35: PRAC | 18| 25| 0| 39| 0| 0| 8| 324| 234| 249 | 13,8| 76,9| 7,8| 32
A36: IPCHO | 13| 7| 57| 0| 64| 2| 6| 241| 162| 185 | 14,2| 76,8| 2,8| 65
A37: UCOCH | 20| 62| 3| 66| 5| 0| 11| 620| 0| 346 | 17,3| 55,8| 5,1| 68
A38: ==============================================================================================
A39: Celkem |1393| 3071| 303| 3596| 303| 76| 760| 32725|10458| 23571 | 16,9| 72,0| 7,0| 3372

Sheet LF nápočtem
A1: LŮŽKOVÝ FOND A JEHO VYUŽITÍ VČETNĚ SVLS | J1: leden prosinec 2009
A3: Klinika |Prům| Počet ošetřovanců |Prům|Skut. |Uzav.|Počet |Využ.lůžek |Prům.|Počet|Prost|Obrat
A4: |poč.|-----------------------------|den.|lůžko.|lůžka|ošetř. |-----------|ošetř|hosp.|L/lho|Lůžka
A5: |lůž.|PŘIJ |exTR+|PROP |exTR-|Úmrtí|p.ho|kapac.| |dnů | dny | % |doba | |(dny)|
A6: ==========================================================================================================
A7: 1.IK | 63| 3124| 110| 2817| 351| 66| 51| 22658| 337| 18450 |292,9| 81,4| 5,7| 3234| 1,3| 52,1|
A8: 2.IK | 62| 2281| 140| 1941| 363| 104| 47| 21944| 686| 17214 |277,6| 78,4| 7,1| 2415| 2,0| 40,2|
A9: 3.IK | 70| 2210| 165| 1938| 379| 68| 49| 22206| 3344| 17838 |254,8| 80,3| 7,5| 2380| 1,8| 39,1|
A10: GER | 90| 110| 744| 709| 64| 77| 48| 18608|14242| 17405 |193,4| 93,5| 20,4| 852| 1,4| 16,7|
A11: PLIC | 63| 1722| 164| 1662| 139| 76| 39| 18155| 4857| 14296 |226,9| 78,7| 7,6| 1882| 2,1| 37,8|
A12: NEUR | 72| 2051| 75| 1815| 257| 42| 54| 24198| 2082| 19852 |275,7| 82,0| 9,4| 2120| 2,1| 32,0|
A13: PSY | 90| 856| 66| 900| 22| 3| 47| 21884|10966| 17230 |191,4| 78,7| 18,7| 924| 5,0| 15,4|
A14: DK | 100| 5928| 26| 5936| 12| 4| 71| 36026| 474| 25754 |257,5| 71,5| 4,3| 5953| 1,7| 60,3|
A15: PORGYN | 87| 3993| 34| 3977| 45| 3| 61| 27538| 4217| 22336 |256,7| 81,1| 5,5| 4026| 1,3| 53,4|
A16: NOVO | 50| 2436| 10| 2403| 8| 20| 46| 18250| 0| 16891 |337,8| 92,6| 6,9| 2439| 0,6| 48,8|
A17: 1CHIR | 86| 2405| 735| 2433| 674| 32| 62| 28004| 3386| 22468 |261,3| 80,2| 7,2| 3140| 1,8| 40,9|
A18: 2CHIR | 33| 1411| 96| 1364| 128| 13| 29| 11921| 124| 10432 |316,1| 87,5| 6,9| 1506| 1,0| 46,1|
A19: NCHIR | 44| 1332| 68| 1293| 81| 24| 29| 15006| 1054| 10421 |236,8| 69,4| 7,4| 1399| 3,3| 34,0|
A20: PCHIR | 18| 826| 34| 831| 29| 0| 11| 6048| 522| 4192 |232,9| 69,3| 4,9| 860| 2,2| 51,9|
A21: KCHIR | 41| 509| 229| 683| 29| 28| 25| 14247| 718| 9067 |221,1| 63,6| 12,3| 739| 7,0| 18,9|
A22: TRAUM | 33| 1911| 70| 1777| 200| 7| 21| 12029| 16| 7703 |233,4| 64,0| 3,9| 1983| 2,2| 60,2|
A23: KAR | 10| 215| 293| 120| 263| 123| 7| 3460| 190| 2711 |271,1| 78,4| 5,3| 507| 1,5| 53,5|
A24: ORT | 72| 2387| 73| 2290| 170| 1| 37| 17107| 9173| 13533 |188,0| 79,1| 5,5| 2461| 1,5| 52,5|
A25: URO | 32| 1573| 440| 1578| 426| 9| 24| 11167| 513| 8730 |272,8| 78,2| 4,3| 2013| 1,2| 65,8|
A26: ORL | 40| 1823| 100| 1831| 96| 1| 24| 12237| 2363| 8689 |217,2| 71,0| 4,5| 1926| 1,8| 57,4|
A27: OCNI | 26| 836| 14| 843| 10| 0| 13| 9258| 232| 4818 |185,3| 52,0| 5,7| 852| 5,2| 33,6|
A28: KOZNI | 26| 705| 19| 686| 33| 0| 19| 8737| 753| 7061 |271,6| 80,8| 9,8| 722| 2,3| 30,1|
A29: ONK | 64| 2668| 31| 2584| 30| 85| 49| 22393| 967| 17885 |279,5| 79,9| 6,6| 2699| 1,7| 44,0|
A30: HOK | 34| 950| 27| 925| 33| 19| 28| 12286| 124| 10346 |304,3| 84,2| 10,6| 977| 2,0| 29,0|
A31: REH | 28| 276| 158| 408| 26| 0| 22| 9296| 924| 7906 |282,4| 85,0| 18,2| 434| 3,2| 17,0|
A32: KNM | 10| 322| 8| 328| 2| 0| 6| 3160| 490| 2238 |223,8| 70,8| 6,8| 330| 2,8| 38,1|
A33: PRAC | 18| 519| 1| 516| 4| 0| 12| 5544| 1026| 4447 |247,1| 80,2| 8,6| 520| 2,1| 34,2|
A34: IPCHO | 13| 90| 1133| 17| 1187| 20| 9| 4273| 472| 3232 |248,6| 75,6| 2,6| 1224| 0,9|104,5|
A35: UCOCH | 20| 822| 43| 819| 45| 1| 12| 7020| 280| 4276 |213,8| 60,9| 4,9| 865| 3,2| 45,0|
A36: ==========================================================================================================
A37: Celkem |1395|46291| 5106|45424| 5106| 826| 952|444660|64532|347421 |249,0| 78,1| 7,5|46271| 2,1| 38,0|

Sheet Rozbor investic-FRIM-18
A1: Rozbor investic - FRM k | C1: 2009-12-31
A4: Plán odpisů roku | B4: =dat_rok -> 2009 | C4: 286500000
A5: Alikvotní část odpisů | C5: 286500000
A6: Skutečně zúčtované odpisy | C6: 254839351
A7: Limit vlastních zdrojů pro nákup inv.2009 | C7: 328491285
A10: F R M - čerpání | D10: v Kč
A14: DRUH INVESTICE | B14: ČERPÁNÍ CELKEM | C14: TVORBA-VLAST.+CIZÍ ZDR. | D14: NEDOČERPÁNO
A15: vlastní zdroje | C15: =C7 -> 328491285 | D15: =C15-(B16+B17+B18+B19+B20) -> 144378658.7
A16: stavby | B16: 42824192.97
A17: projekty | B17: 11306083
A18: Přístrojová technika | B18: 124489252.3
A19: technické zhodnocení | B19: 5493098.09
A20: oprava a udržování | B20: 0
A21: DARY | C21: 1444410.8 | D21: =C21-(B22+B23+B24) -> 0
A22: stavby | B22: 76626.8
A23: technické zhodnocení | B23: 58543
A24: Přístrojová technika | B24: 1309241
A25: OSTATNÍ DOTACE | C25: 1446837 | D25: =C25-(B28+B29) -> 0
A26: stavby
A27: technické zhodnocení
A28: Přístrojová technika | B28: 844837
A29: IGA-spoluřešitel | B29: 602000
A30: SYSTÉM.DOTACE 916 | C30: 201669000 | D30: =C30-(B31+B32+B33) -> 75
A31: stavby | B31: 0
A32: projekty | B32: 0
A33: Přístrojová technika | B33: 201668925
A34: SYSTÉM.DOTACE 916 IOP | C34: 164835000 | D34: =C34-(B35+B36+B37) -> 11793.52
A35: stavby | B35: 0
A36: projekty | B36: 0
A37: Přístrojová technika | B37: 164823206.5
A38: PROJEKTY IGA - 924 | C38: 3197000 | D38: =C38-(B39+B40+B41) -> 75936.4
A39: stavby
A40: projekty
A41: Přístrojová technika | B41: 3121063.6
A42: C E L K E M | B42: =SUM(B15:B37) -> 553496005.6 | C42: =SUM(C15:C37) -> 697886532.8 | D42: =SUM(D15:D37) -> 144390527.2
A44: Z toho:
A45: čerpání z odpisů | B45: =SUM(B16:B20) -> 184112626.3 | C45: =SUM(C15) -> 328491285 | D45: =SUM(D15) -> 144378658.7
A46: čerpání z dotací | B46: =SUM(B22:B41) -> 372504442.9 | C46: =SUM(C21:C38) -> 372592247.8 | D46: =SUM(D21:D41) -> 87804.92

Sheet Celková finanční situace-19
A1: Celková finanční situace:
A3: Rozbor platební neschopnosti FN k | C3: 2009-12-31
A6: Zůstatek na BÚ (bez FKSP) | C6: 250902 | D6: tis. Kč
A7: čerpání KTK | C7: 0 | D7: tis. Kč
A9: Potřeba finančních prostředků na mzdy za měsíc | D9: 2009-12-01
A10: celkem | C10: 136028 | D10: tis. Kč
A13: 1. Stav závazků vůči dodavatelům k | C13: 2009-12-31
A15: Závazky | B15: LS | C15: FN | D15: Celkem
A16: do splatnosti | B16: 448322876.6 | C16: 89915263.92 | D16: =SUM(B16:C16) -> 538238140.6
A17: po splat. do 30 dnů | B17: -1702286.35 | C17: 42365296.38 | D17: 40663010.03
A18: 31 - 90 dnů | B18: -7756601.79 | C18: 7477060.77 | D18: -279541.02
A19: 91 - 180 dnů | B19: 0 | C19: 413402.32 | D19: 413402.32
A20: 181 - 360 dnů | B20: 0 | C20: 83367.72 | D20: 83367.72
A21: nad 360 dnů | B21: 0 | C21: 372029.46 | D21: 372029.46
A22: C e l k e m | B22: =SUM(B16:B21) -> 438863988.5 | C22: =SUM(C16:C21) -> 140626420.6 | D22: =SUM(D16:D21) -> 579490409.1
A27: Pohledávky
A29: FN - pouze ve vztahu k odběratel. (úč. 311+324+970) | D29: 440470 | E29: tis. Kč
A30: LS - pouze ve vztahu k odběratelům | D30: 34958 | E30: tis. Kč
A31: Celkem | D31: =SUM(D29:D30) -> 475428 | E31: tis. Kč
B33: z toho po lhůtě splatnosti celkem | D33: 17362 | E33: tis. Kč
A36: Závazky
A38: FN - pouze ve vztahu k dodavatel. (úč.321+314+970) | D38: 140626 | E38: tis. Kč
A39: LS - pouze ve vztahu k dodavatelům | D39: 438864 | E39: tis. Kč
A40: Celkem | D40: =SUM(D38:D39) -> 579490 | E40: tis. Kč
B42: z toho po lhůtě splatnosti celkem | D42: 41252 | E42: tis. Kč

Sheet Nezaplacené pohledávky FN Ol-20
B1: Nezaplacené pohledávky FN Olomouc
B2: k 31.12.2009
A5: Kód | B5: Název zdravotní pojišťovny (ZP) | C5: do splatnosti | D5: po splatnosti | E5: Celkem
A6: 111 | B6: Všeobecná zdrav.pojišťovna ČR | C6: =364211306.05+18107312.74 -> 382318618.8 | D6: =546420.59+21356.86 -> 567777.45 | E6: =C6+D6 -> 382886396.2
A7: 201 | B7: Vojenská zdrav.pojišťovna ČR | C7: =26535105.53+2526377.02 -> 29061482.55 | D7: 0 | E7: 29061482.55
A8: 205 | B8: Česká průmyslová ZP | C8: =19331417.57+2775816.47+53240.5 -> 22160474.54 | D8: 2466780.28 | E8: 24627254.82
A9: 207 | B9: Oborová zdr.poj.zam.bank a p. | C9: =7140743.34+918262.69 -> 8059006.03 | D9: =1614.05+5432.91 -> 7046.96 | E9: 8066052.99
A10: 209 | B10: Zaměstnanecká poj.ŠKODA | C10: =29421.51+1629.48 -> 31050.99 | D10: 0 | E10: 31050.99
A11: 211 | B11: Zdr.poj.ministerstva vnitra CR | C11: =821616.78+2441104.29 -> 3262721.07 | D11: 0 | E11: 3262721.07
A12: 213 | B12: Revirní bratrská pokladna | C12: =203070.16+1718951.04 -> 1922021.2 | D12: 0 | E12: 1922021.2
A13: 217 | B13: Zdrav.poj. METAL-ALIANCE | C13: =1276185.56+4634924.81 -> 5911110.37 | D13: 65000 | E13: 5976110.37
A14: 222 | B14: Česká národní zdravotní pojiš. | C14: 0 | D14: 0 | E14: =C14+D14 -> 0
A15: 227 | B15: Pojišťovna AGEL | C15: 0 | D15: 0 | E15: 0
A16: 228 | B16: ZP Media | C16: =767596.37+91741.62 -> 859337.99 | D16: =627522.79+3217.05 -> 630739.84 | E16: 1490077.83
E17: 0
E18: 0
B19: Pohledávky celkem (aktivní ZP) | C19: =SUM(C6:C18) -> 453585823.5 | D19: =SUM(D6:D18) -> 3737344.53 | E19: =SUM(E6:E18) -> 457323168.1
A20: 202 | B20: Hornická zaměstnanecká poj. | C20: 0 | D20: 0 | E20: 0
A21: 204 | B21: Zdrav.poj. GARANT-HOSPITAL | C21: 0 | D21: 0 | E21: 0
A22: 206 | B22: Moravská zdravotní pojišťovna | C22: 0 | D22: 0 | E22: 0
A23: 208 | B23: Zdravotní pojišťovna ATLAS | C23: 0 | D23: 0 | E23: 0
A24: 210 | B24: Zdrav.poj. škodováků | C24: 0 | D24: 0 | E24: 0
A25: 214 | B25: Regionální zdrav.poj.REZAPO | C25: 0 | D25: 0 | E25: 0
A26: 215 | B26: Moravskoslezská poj. IMPULS | C26: 0 | D26: 0 | E26: 0
A27: 216 | B27: Zdravotní pojišťovna SALVUS | C27: 0 | D27: 0 | E27: 0
A28: 218 | B28: Zdrav.poj. CRYSTAL | C28: 0 | D28: 0 | E28: 0
A29: 219 | B29: Prostějovská zdravotní poj. | C29: 0 | D29: 0 | E29: 0
A30: 221 | B30: Mendlova zdravotní poj. | C30: 0 | D30: 0 | E30: 0
A31: 223 | B31: Zem.-potrav. zdrav.poj. ZEPO | C31: 0 | D31: 0 | E31: 0
A32: 224 | B32: Zaměstnanecká zdrav.poj. RADIX | C32: 0 | D32: 0 | E32: 0
A33: 225 | B33: Zdravotní pojišťovna SPORT | C33: 0 | D33: 0 | E33: 0
E34: 0
E35: 0
B36: Pohledávky celkem (zaniklé ZP) | C36: =SUM(C20:C35) -> 0 | D36: =SUM(D20:D35) -> 0 | E36: =SUM(E20:E35) -> 0
B37: Slovenské ZP | C37: 0 | D37: 17658.9 | E37: 17658.9
B38: Pohledávky celkem | C38: =C19+C36+C37 -> 453585823.5 | D38: =D19+D36+D37 -> 3755003.43 | E38: =E19+E36+E37 -> 457340827

Sheet Pohledávky po zdr. pojišťov.-21
C1: Pohledávky po zdrav. pojišťovnách
D2: k | E2: =dat_do -> 2009-12-31
D46: ZP celkem | E46: VZP | F46: Ostat. ZP
C47: pohl.celkem | D47: =SUM(E47:F47) -> 457340.827 | E47: 382886.3962 | F47: 74454.43072
C48: pohl.po spl. | D48: =SUM(E48:F48) -> 3755.00343 | E48: 567.77745 | F48: 3187.22598

Sheet Nezaplacené pohledávky-22 (hidden)
C1: Nezaplacené pohledávky k | H1: =dat_do -> 2009-12-31
A36: Zdrav.poj. | B36: VZP | C36: 201 | D36: 205 | E36: 207 | F36: 210 | G36: 211 | H36: 213 | I36: 215 | J36: 217 | K36: 219 | L36: 222 | M36: 225
A37: pohl.celk. | B37: 382886.3962 | C37: 29061.48255 | D37: 24545.45845 | E37: 8066.05299 | F37: 0 | G37: 3262.72107 | H37: 1922.0212 | I37: 0 | J37: 5976.11037 | K37: 0 | L37: 56.4647 | M37: 0
A38: pohl.po spl. | B38: 567.77745 | C38: 0 | D38: 2466.78028 | E38: 7.04696 | F38: 0 | G38: 0 | H38: 0 | I38: 0 | J38: 65 | K38: 0 | L38: 0 | M38: 0

Sheet Hospodaření,fin.sit.,solvent-23
C1: Hospodaření, finanční situace a solventnost
D2: FN Olomouc v roce | F2: =dat_rok -> 2009
D35: HV | E35: Pohledávky | F35: Závazky | G35: Solventnost
C36: 1 | D36: 6.49261833 | E36: 452.8297547 | F36: 450.4 | G36: =SUM(E36-F36) -> 2.42975471
C37: 1-2 | D37: 24.80154191 | E37: 477.4864332 | F37: 458.6 | G37: =SUM(E37-F37) -> 18.8864332
C38: 1-3 | D38: 16.8640829 | E38: 474.9863487 | F38: 466 | G38: 8.98634869
C39: 1-4 | D39: 11.09034714 | E39: 483.2103153 | F39: 485.3 | G39: -2.08968471
C40: 1-5 | D40: 57.42758501 | E40: 500.2570771 | F40: 502.6 | G40: -2.34292295
C41: 1-6 | D41: 99.29855901 | E41: 520.9402367 | F41: 486.4 | G41: 34.54023666
C42: 1-7 | D42: 151.1394109 | E42: 522.1401329 | F42: 510.8 | G42: 11.34013291
C43: 1-8 | D43: 192.252342 | E43: 471.54883 | F43: 528.1 | G43: -56.55117003
C44: 1-9 | D44: 167.3246469 | E44: 490.4968719 | F44: 516 | G44: -25.50312806
C45: 1-10 | D45: 151.6059978 | E45: 494.6285464 | F45: 571.1 | G45: -76.47145363
C46: 1-11 | D46: 158.0694034 | E46: 564.3839379 | F46: 628.7 | G46: -64.31606208
C47: 1-12 | D47: 2.46875294 | E47: 475.4072923 | F47: 579.5 | G47: -104.0927077

Sheet Nezap. pohled. FNOl - souhrn-24 (hidden)
A1: Nezaplacené pohledávky FN Olomouc
A2: =CONCATENATE("k ",DAY(dat_do),".",MONTH(dat_do),".",YEAR(dat_do)) -> k 31.12.2009
A5: Kód | B5: Název zdravotní pojišťovny (ZP) | C5: do splatnosti | D5: po splatnosti | E5: Celkem
A6: ='Nezaplacené pohledávky FN Ol-20'!A6 -> 111 | B6: ='Nezaplacené pohledávky FN Ol-20'!B6 -> Všeobecná zdrav.pojišťovna ČR | C6: ='Nezaplacené pohledávky FN Ol-20'!C6 -> 382318618.8 | D6: ='Nezaplacené pohledávky FN Ol-20'!D6 -> 567777.45 | E6: =C6+D6 -> 382886396.2
A7: ='Nezaplacené pohledávky FN Ol-20'!A7 -> 201 | B7: ='Nezaplacené pohledávky FN Ol-20'!B7 -> Vojenská zdrav.pojišťovna ČR | C7: ='Nezaplacené pohledávky FN Ol-20'!C7 -> 29061482.55 | D7: ='Nezaplacené pohledávky FN Ol-20'!D7 -> 0 | E7: 29061482.55
A8: ='Nezaplacené pohledávky FN Ol-20'!A8 -> 205 | B8: ='Nezaplacené pohledávky FN Ol-20'!B8 -> Česká průmyslová ZP | C8: ='Nezaplacené pohledávky FN Ol-20'!C8 -> 22160474.54 | D8: ='Nezaplacené pohledávky FN Ol-20'!D8 -> 2466780.28 | E8: 24627254.82
A9: ='Nezaplacené pohledávky FN Ol-20'!A9 -> 207 | B9: ='Nezaplacené pohledávky FN Ol-20'!B9 -> Oborová zdr.poj.zam.bank a p. | C9: ='Nezaplacené pohledávky FN Ol-20'!C9 -> 8059006.03 | D9: ='Nezaplacené pohledávky FN Ol-20'!D9 -> 7046.96 | E9: 8066052.99
A10: ='Nezaplacené pohledávky FN Ol-20'!A10 -> 209 | B10: ='Nezaplacené pohledávky FN Ol-20'!B10 -> Zaměstnanecká poj.ŠKODA | C10: ='Nezaplacené pohledávky FN Ol-20'!C10 -> 31050.99 | D10: ='Nezaplacené pohledávky FN Ol-20'!D10 -> 0 | E10: 31050.99
A11: ='Nezaplacené pohledávky FN Ol-20'!A11 -> 211 | B11: ='Nezaplacené pohledávky FN Ol-20'!B11 -> Zdr.poj.ministerstva vnitra CR | C11: ='Nezaplacené pohledávky FN Ol-20'!C11 -> 3262721.07 | D11: ='Nezaplacené pohledávky FN Ol-20'!D11 -> 0 | E11: 3262721.07
A12: ='Nezaplacené pohledávky FN Ol-20'!A12 -> 213 | B12: ='Nezaplacené pohledávky FN Ol-20'!B12 -> Revirní bratrská pokladna | C12: ='Nezaplacené pohledávky FN Ol-20'!C12 -> 1922021.2 | D12: ='Nezaplacené pohledávky FN Ol-20'!D12 -> 0 | E12: 1922021.2
A13: ='Nezaplacené pohledávky FN Ol-20'!A13 -> 217 | B13: ='Nezaplacené pohledávky FN Ol-20'!B13 -> Zdrav.poj. METAL-ALIANCE | C13: ='Nezaplacené pohledávky FN Ol-20'!C13 -> 5911110.37 | D13: ='Nezaplacené pohledávky FN Ol-20'!D13 -> 65000 | E13: 5976110.37
A14: ='Nezaplacené pohledávky FN Ol-20'!A15 -> 227 | B14: ='Nezaplacené pohledávky FN Ol-20'!B15 -> Pojišťovna AGEL | C14: ='Nezaplacené pohledávky FN Ol-20'!C15 -> 0 | D14: ='Nezaplacené pohledávky FN Ol-20'!D15 -> 0 | E14: 0
A15: ='Nezaplacené pohledávky FN Ol-20'!A16 -> 228 | B15: ='Nezaplacené pohledávky FN Ol-20'!B16 -> ZP Media | C15: ='Nezaplacené pohledávky FN Ol-20'!C16 -> 859337.99 | D15: ='Nezaplacené pohledávky FN Ol-20'!D16 -> 630739.84 | E15: 1490077.83
A16: ='Nezaplacené pohledávky FN Ol-20'!A17 -> 0 | B16: ='Nezaplacené pohledávky FN Ol-20'!B17 -> 0 | C16: ='Nezaplacené pohledávky FN Ol-20'!C17 -> 0 | D16: ='Nezaplacené pohledávky FN Ol-20'!D17 -> 0 | E16: 0
A17: ='Nezaplacené pohledávky FN Ol-20'!A18 -> 0 | B17: ='Nezaplacené pohledávky FN Ol-20'!B18 -> 0 | C17: ='Nezaplacené pohledávky FN Ol-20'!C18 -> 0 | D17: ='Nezaplacené pohledávky FN Ol-20'!D18 -> 0 | E17: 0
B18: Pohledávky celkem (aktivní ZP) | C18: =SUM(C6:C17) -> 453585823.5 | D18: =SUM(D6:D17) -> 3737344.53 | E18: =SUM(E6:E17) -> 457323168.1
B19: Pohledávky celkem (zaniklé ZP) | C19: ='Nezaplacené pohledávky FN Ol-20'!C36 -> 0 | D19: ='Nezaplacené pohledávky FN Ol-20'!D36 -> 0 | E19: ='Nezaplacené pohledávky FN Ol-20'!E36 -> 0
B20: Slovenské ZP | C20: =Slovenske_ZP_dospl -> 0 | D20: =Slovenske_ZP_pospl -> 17658.9 | E20: =C20+D20 -> 17658.9
B21: Pohledávky celkem | C21: =C18+C19+C20 -> 453585823.5 | D21: =D18+D19+D20 -> 3755003.43 | E21: =E18+E19+E20 -> 457340827

Sheet Vývojová řada nákladů-25
E1: Vývojová řada nákladů
F2: =CONCATENATE("v letech ",YEAR(dat_do)-2," - ",YEAR(dat_do)) -> v letech 2007 - 2009
B38: =CONCATENATE("Ø ",YEAR(dat_do)-2) -> Ø 2007 | C38: =CONCATENATE("Ø ",YEAR(dat_do)-1) -> Ø 2008 | D38: =CONCATENATE("I.",RIGHT(YEAR(dat_do),2)) -> I.09 | E38: =CONCATENATE("II.",RIGHT(YEAR(dat_do),2)) -> II.09 | F38: =CONCATENATE("III.",RIGHT(YEAR(dat_do),2)) -> III.09 | G38: =CONCATENATE("IV.",RIGHT(YEAR(dat_do),2)) -> IV.09 | H38: =CONCATENATE("V.",RIGHT(YEAR(dat_do),2)) -> V.09 | I38: =CONCATENATE("VI.",RIGHT(YEAR(dat_do),2)) -> VI.09 | J38: =CONCATENATE("VII.",RIGHT(YEAR(dat_do),2)) -> VII.09 | K38: =CONCATENATE("VIII.",RIGHT(YEAR(dat_do),2)) -> VIII.09 | L38: =CONCATENATE("IX.",RIGHT(YEAR(dat_do),2)) -> IX.09 | M38: =CONCATENATE("X.",RIGHT(YEAR(dat_do),2)) -> X.09 | N38: =CONCATENATE("XI.",RIGHT(YEAR(dat_do),2)) -> XI.09 | O38: =CONCATENATE("XII.",RIGHT(YEAR(dat_do),2)) -> XII.09
A39: Léky | B39: 47834.67236 | C39: 58886.60938 | D39: 64135.32311 | E39: 65026.54896 | F39: 68696.00443 | G39: 80236.08424 | H39: 63020.76591 | I39: 63793.18605 | J39: 67747.62698 | K39: 61456.24099 | L39: 70614.81972 | M39: 82049.67586 | N39: 71107.15707 | O39: 70033.94165
A40: z toho: VLV | B40: 24508.67568 | C40: 25811.33809 | D40: 6713.50746 | E40: 6765.68631 | F40: 5482.78011 | G40: 6782.56679 | H40: 5339.121 | I40: 4742.2028 | J40: 5775.63008 | K40: 4410.72676 | L40: 5521.36887 | M40: 6794.05383 | N40: 5269.35095 | O40: 7743.31301
A41: centra | B41: 0 | C41: 7881.186365 | D41: 35794.60969 | E41: 33907.9209 | F41: 36783.12585 | G41: 44531.804 | H41: 34842.26598 | I41: 32846.72152 | J41: 37734.61897 | K41: 34313.39831 | L41: 39392.97087 | M41: 43473.13035 | N41: 44220.85291 | O41: 35850.86071
A42: Krev | B42: 3818.479587 | C42: 3422.303363 | D42: 2539.01149 | E42: 3002.93604 | F42: 3155.60679 | G42: 7299.61059 | H42: 3969.75349 | I42: 4446.67843 | J42: 3899.85611 | K42: 4107.30403 | L42: 4749.13171 | M42: 5573.01605 | N42: 4604.58326 | O42: 4092.07904
A43: SZM | B43: 42788.21418 | C43: 48845.25605 | D43: 47973.69292 | E43: 44363.38766 | F43: 56102.19677 | G43: 49511.51514 | H43: 48501.95054 | I43: 53931.00222 | J43: 43607.65528 | K43: 51800.36693 | L43: 57168.18129 | M43: 67062.60225 | N43: 84558.07985 | O43: 87448.01029
A44: Prodej LS | B44: 23514.79898 | C44: 25951.58575 | D44: 31524.64349 | E44: 22846.80017 | F44: 26620.13524 | G44: 27116.21082 | H44: 24315.07483 | I44: 29255.3927 | J44: 27843.56772 | K44: 21686.64043 | L44: 32710.0501 | M44: 24684.77886 | N44: 20789.13028 | O44: 30551.293
A45: Os. náklady | B45: 114355.2591 | C45: 115119.0559 | D45: 115434.2424 | E45: 110977.2157 | F45: 114263.7407 | G45: 115427.6996 | H45: 121392.0618 | I45: 119582.2666 | J45: 133480.6623 | K45: 125689.7619 | L45: 145347.2013 | M45: 130715.8993 | N45: 141312.4911 | O45: 137792.261
A46: Odpisy | B46: 12583.07014 | C46: 9957.451378 | D46: 21972.02 | E46: 22447.568 | F46: 21523.282 | G46: 21283.845 | H46: 21247.162 | I46: 21046.556 | J46: 21035.123 | K46: 21691.395 | L46: 20708.198 | M46: 28965.085 | N46: 21102.577 | O46: 22799.132
A47: Př. náklady | B47: 293896.427 | C47: 296000.5857 | D47: 323328.8071 | E47: 301655.5762 | F47: 333821.4992 | G47: 334925.4095 | H47: 323912.544 | I47: 327129.6042 | J47: 340499.5519 | K47: 322291.7493 | L47: 368941.4926 | M47: 382151.4439 | N47: 396024.2323 | O47: 475105.0711
A49: *VLV = vliv lékové vyhlášky

Sheet Vývojová řada výnosů -26
E1: Vývojová řada výnosů
F2: =CONCATENATE("v letech ",YEAR(dat_do)-2," - ",YEAR(dat_do)) -> v letech 2007 - 2009
B30: =CONCATENATE("Ø ",YEAR(dat_do)-2) -> Ø 2007 | C30: =CONCATENATE("Ø ",YEAR(dat_do)-1) -> Ø 2008 | D30: =CONCATENATE("I.",RIGHT(YEAR(dat_do),2)) -> I.09 | E30: =CONCATENATE("II.",RIGHT(YEAR(dat_do),2)) -> II.09 | F30: =CONCATENATE("III.",RIGHT(YEAR(dat_do),2)) -> III.09 | G30: =CONCATENATE("IV.",RIGHT(YEAR(dat_do),2)) -> IV.09 | H30: =CONCATENATE("V.",RIGHT(YEAR(dat_do),2)) -> V.09 | I30: =CONCATENATE("VI.",RIGHT(YEAR(dat_do),2)) -> VI.09 | J30: =CONCATENATE("VII.",RIGHT(YEAR(dat_do),2)) -> VII.09 | K30: =CONCATENATE("VIII.",RIGHT(YEAR(dat_do),2)) -> VIII.09 | L30: =CONCATENATE("IX.",RIGHT(YEAR(dat_do),2)) -> IX.09 | M30: =CONCATENATE("X.",RIGHT(YEAR(dat_do),2)) -> X.09 | N30: =CONCATENATE("XI.",RIGHT(YEAR(dat_do),2)) -> XI.09 | O30: =CONCATENATE("XII.",RIGHT(YEAR(dat_do),2)) -> XII.09
A31: Fakt. ZP běžný rok | B31: 221499.84 | C31: 242648.2124 | D31: 265553.0502 | E31: 262846.628 | F31: 261802.4492 | G31: 261637.2379 | H31: 272236.8888 | I31: 265512.2791 | J31: 264297.6933 | K31: 265779.0419 | L31: 272167.5031 | M31: 283595.5427 | N31: 317227.9825 | O31: 336991.874
A32: Dorov. ZP minul. let | B32: 3552.527522 | C32: 2335.178226 | D32: -18.56324 | E32: 479.44323 | F32: 19.95978 | G32: 285.14815 | H32: 39236.12596 | I32: 23227.87713 | J32: 62871.14426 | K32: 36292.63583 | L32: -4.25727 | M32: 1511.81555 | N32: 17560.14703 | O32: -66878.10247
A33: Prodej LS | B33: 26315.48497 | C33: 28611.43977 | D33: 34766.25681 | E33: 25583.39206 | F33: 29863.07735 | G33: 30155.14302 | H33: 27174.42677 | I33: 32505.95734 | J33: 30589.8181 | K33: 24085.815 | L33: 34637.97504 | M33: 28602.64444 | N33: 23075.99411 | O33: 33494.92891
A34: Přímé výnosy | B34: 273276.084 | C34: 305094.6372 | D34: 329821.4255 | E34: 319964.4998 | F34: 325884.0402 | G34: 329151.6737 | H34: 370249.7819 | I34: 369000.5782 | J34: 392340.4038 | K34: 363404.6803 | L34: 344013.7975 | M34: 366432.7947 | N34: 402487.638 | O34: 319504.4207

Sheet Vývojová řada HV - 27
E1: Vývojová řada hospodářských výsledků
F2: =CONCATENATE("v letech ",YEAR(dat_do)-2,"-",YEAR(dat_do)) -> v letech 2007-2009
B36: 01 | C36: 02 | D36: 03 | E36: 04 | F36: 05 | G36: 06 | H36: 07 | I36: 08 | J36: 09 | K36: 10 | L36: 11 | M36: 12
A37: =CONCATENATE("HV ",YEAR(dat_do)-2) -> HV 2007 | B37: -23884.83347 | C37: 27913.48667 | D37: 25082.48581 | E37: -11095.40974 | F37: 8189.4711 | G37: 21742.94133 | H37: -5037.90443 | I37: 4848.97291 | J37: -31638.88745 | K37: -34970.76496 | L37: -49064.35778 | M37: -179529.3156
A38: =CONCATENATE("HV ",YEAR(dat_do)-1) -> HV 2008 | B38: -31193.58369 | C38: -7114.38203 | D38: 441.17762 | E38: 8042.74969 | F38: 10746.53691 | G38: 67656.09773 | H38: 74.6272 | I38: 8.95152 | J38: 17608.64403 | K38: -11563.22397 | L38: -19354.0164 | M38: 73775.03949
A39: =CONCATENATE("HV ",YEAR(dat_do)) -> HV 2009 | B39: 6492.61833 | C39: 18308.92358 | D39: -7937.45901 | E39: -5773.73576 | F39: 46337.23787 | G39: 41870.974 | H39: 51840.8519 | I39: 41112.93109 | J39: -24927.6951 | K39: -15718.64914 | L39: 6463.40567 | M39: -155600.6505

Sheet Podíl ukazatelů N a V - 28
A1: Náklady a výnosy FN Olomouc v tis. Kč
A2: =dat_obdobi -> 1-12/2009
D6: Podíl ukazatelů z celkových nákladů
A7: Náklady FN Olomouc v tis. Kč
A8: Léky | B8: 827917
A9: Krev | B9: 51440
A10: SZM | B10: 692029
A11: Potraviny | B11: 37767
A12: Energie | B12: 105085
A13: Osobní náklady | B13: 1511415.504
A14: Odpisy | B14: 265822
A15: Prodané zboží LS | B15: 319944
A16: Ostatní | B16: =B17-SUM(B8:B15) -> 418367.4777
A17: Celkem | B17: 4229786.981
D31: Podíl ukazatelů z celkových výnosů
A32: Výnosy FN Olomouc v tis. Kč
A33: Provozní dotace | B33: 44207.08998
A34: Výkony pro zdr.poj. | B34: 3447000
A35: Aktivace | B35: 85849.87369
A36: Tržby za léčiva | B36: 354535.429
A37: Ostatní výnosy | B37: =B38-SUM(B33:B36) -> 300663.3417
A38: Celkem | B38: 4232255.734
